bitfinex/quotes_SOLUSD_20250619
["timestamp","ask_amount","ask_price","bid_price","bid_amount"]
[1750328370624,26.0,146.26,146.23,6.83854202]
[1750328370829,8.10670874,146.25,146.23,6.83854202]
[1750328371025,8.10670874,146.26,146.23,6.83854202]
[1750328371225,34.10670874,146.26,146.23,6.83854202]
[1750328373745,8.10670874,146.25,146.23,6.83854202]
[1750328375228,34.10670874,146.26,146.23,6.83854202]
[1750328375429,5.09285045,146.29,146.25,8.10670874]
[1750328375630,9.76720874,146.32,146.27,8.10670874]
[1750328375864,8.10670874,146.33,146.29,8.10670874]
[1750328376165,8.10670874,146.34,146.27,18.64964886]
[1750328376323,8.10670874,146.32,146.28,8.10670874]
[1750328376746,34.10670874,146.33,146.28,8.10670874]
[1750328378130,34.10670874,146.33,146.29,8.10670874]
[1750328380451,34.10670874,146.33,146.3,6.83526999]
[1750328381530,8.10670874,146.31,146.28,6.83620453]
[1750328382161,34.10670874,146.32,146.28,6.83620453]
[1750328382328,26.0,146.32,146.28,6.83620453]
[1750328382533,34.10670874,146.32,146.28,14.94291327]
[1750328383437,34.10670874,146.32,146.28,6.83620453]
[1750328384059,8.10670874,146.3,146.28,6.83620453]
[1750328384941,8.10670874,146.3,146.27,6.8366719]
[1750328385675,8.10670874,146.29,146.27,6.8366719]
[1750328385837,8.10670874,146.3,146.27,6.8366719]
[1750328386165,5.09074532,146.32,146.27,6.8366719]
[1750328386166,8.10670874,146.29,146.27,6.8366719]
[1750328389660,8.10670874,146.29,146.25,18.64964886]
[1750328389661,8.10670874,146.29,146.26,6.83713934]
[1750328394871,8.10670874,146.28,146.26,6.83713934]
[1750328396258,8.10670874,146.27,146.26,6.83713934]
[1750328396454,8.10670874,146.27,146.24,6.83807439]
[1750328396661,8.10670874,146.26,146.24,6.83807439]
[1750328397064,8.10670874,146.27,146.24,6.83807439]
[1750328400072,8.10670874,146.27,146.24,95.03807439]
[1750328400461,5.10930189,146.28,146.24,95.03807439]
[1750328400462,8.10670874,146.25,146.24,6.83807439]
[1750328401188,34.10670874,146.26,146.24,6.83807439]
[1750328401369,8.10670874,146.28,146.24,32.03996912]
[1750328401569,8.10670874,146.28,146.24,23.93326038]
[1750328401774,8.10670874,146.28,146.24,32.03996912]
[1750328402291,36.66239184,146.29,146.24,32.03996912]
[1750328402490,13.21624498,146.28,146.24,23.93326038]
[1750328402782,26.0,146.29,146.24,23.93326038]
[1750328402783,8.10670874,146.27,146.24,23.93326038]
[1750328403168,34.10670874,146.28,146.24,23.93326038]
[1750328403365,34.10670874,146.28,146.25,18.64964886]
[1750328404181,34.10670874,146.28,146.26,6.83713934]
[1750328405972,34.10670874,146.28,146.21,89.7262]
[1750328405973,13.21768347,146.27,146.22,6.83900971]
[1750328406171,26.0,146.29,146.22,6.83900971]
[1750328406172,8.10670874,146.24,146.22,6.83900971]
[1750328406373,8.10670874,146.23,146.22,6.83900971]
[1750328408180,8.10670874,146.23,146.2,23.93972868]
[1750328408576,8.10670874,146.22,146.2,6.83994528]
[1750328409890,8.10670874,146.21,146.2,6.83994528]
[1750328411197,8.10670874,146.21,146.18,25.49052996]
[1750328411400,8.10670874,146.2,146.18,25.49052996]
[1750328412203,8.10670874,146.2,146.18,6.8408811]
[1750328412497,8.10670874,146.23,146.13,1.6289]
[1750328412498,8.10670874,146.19,146.15,6.84228532]
[1750328412706,8.10670874,146.18,146.15,6.84228532]
[1750328414102,8.10670874,146.19,146.15,32.05470736]
[1750328415320,26.0,146.2,146.16,18.64964886]
[1750328415491,34.10670874,146.2,146.17,23.94472189]
[1750328420217,8.10670874,146.23,146.19,8.10670874]
[1750328420797,6.75586928,146.26,146.21,18.64964886]
[1750328420999,8.10670874,146.25,146.21,26.7563576]
[1750328421226,8.10670874,146.23,146.22,6.83900971]
[1750328421424,8.10670874,146.24,146.22,6.83900971]
[1750328422427,5.09046928,146.29,146.22,32.04324272]
[1750328422622,8.10670874,146.29,146.24,8.10670874]
[1750328422831,8.10670874,146.3,146.25,8.10670874]
[1750328423127,8.10670874,146.3,146.26,8.10670874]
[1750328423297,8.10670874,146.29,146.27,6.8366719]
[1750328423499,8.10670874,146.28,146.25,6.83760683]
[1750328423716,8.10670874,146.27,146.25,6.83760683]
[1750328423992,8.10670874,146.28,146.25,6.83760683]
[1750328425003,26.0,146.29,146.25,6.83760683]
[1750328425201,34.10670874,146.29,146.25,32.03833266]
[1750328425432,26.0,146.29,146.25,32.03833266]
[1750328425601,8.10670874,146.3,146.25,32.03833266]
[1750328425602,34.10670874,146.3,146.25,32.03833266]
[1750328426122,34.10670874,146.3,146.26,8.10670874]
[1750328426440,26.0,146.3,146.27,18.64964886]
[1750328426734,26.0,146.3,146.27,26.7563576]
[1750328426916,8.10670874,146.31,146.27,26.7563576]
[1750328427122,8.10670874,146.31,146.28,6.83620453]
[1750328427346,34.10670874,146.31,146.28,6.83620453]
[1750328431714,26.0,146.31,146.28,14.94291327]
[1750328432741,26.0,146.31,146.28,32.03342461]
[1750328432926,8.10670874,146.32,146.28,32.03342461]
[1750328435042,8.10670874,146.32,146.28,23.92671587]
[1750328435364,8.10670874,146.32,146.28,32.03342461]
[1750328435871,8.10670874,146.3,146.28,6.83620453]
[1750328436180,32.83340212,146.34,146.27,6.83654971]
[1750328436181,8.10670874,146.29,146.27,6.83654971]
[1750328436830,8.10670874,146.28,146.27,6.83654971]
[1750328437029,8.10670874,146.28,146.23,6.83854202]
[1750328437225,8.10670874,146.26,146.23,95.03854202]
[1750328438489,8.10670874,146.25,146.23,95.03854202]
[1750328438655,8.10670874,146.26,146.23,6.83854202]
[1750328443450,8.10670874,146.26,146.23,95.03854202]
[1750328444893,8.10670874,146.25,146.23,95.03854202]
[1750328451212,8.10670874,146.26,146.23,95.03854202]
[1750328453192,8.10670874,146.24,146.23,6.83854202]
[1750328453396,8.10670874,146.24,146.21,6.83947746]
[1750328453692,8.10670874,146.23,146.21,6.83947746]
[1750328456503,8.10670874,146.24,146.21,6.83947746]
[1750328459022,26.0,146.24,146.21,6.83947746]
[1750328459223,34.10670874,146.24,146.21,6.83947746]
[1750328459727,8.10670874,146.22,146.16,23.94546939]
[1750328459925,8.10670874,146.22,146.17,26.7563576]
[1750328460221,8.10670874,146.22,146.18,8.10670874]
[1750328460422,34.10670874,146.24,146.17,18.64964886]
[1750328460624,34.10670874,146.23,146.19,18.64964886]
[1750328461001,8.10670874,146.22,146.19,18.64964886]
[1750328461417,8.10670874,146.2,146.17,18.64964886]
[1750328461822,8.10670874,146.19,146.16,88.2]
[1750328462102,8.10670874,146.19,146.17,6.84114449]
[1750328463010,8.10670874,146.2,146.17,6.84114449]
[1750328463220,26.0,146.21,146.18,8.10670874]
[1750328463509,8.10670874,146.22,146.18,18.64964886]
[1750328463934,8.10670874,146.22,146.19,6.84041316]
[1750328464107,8.10670874,146.21,146.19,6.84041316]
[1750328469240,8.10670874,146.22,146.19,6.84041316]
[1750328470237,8.10670874,146.21,146.19,6.84041316]
[1750328473240,8.10670874,146.2,146.18,6.84072101]
[1750328473406,26.0,146.16,146.1,6.84462696]
[1750328473610,8.10670874,146.14,146.1,14.9513357]
[1750328474038,8.10670874,146.14,146.11,18.64964886]
[1750328475539,8.10670874,146.13,146.1,6.84462696]
[1750328476137,8.10670874,146.12,146.1,18.64964886]
[1750328476437,8.10670874,146.11,146.08,82.32740603]
[1750328477510,8.10670874,146.11,146.09,6.84509548]
[1750328482549,8.10670874,146.1,146.08,89.1728519]
[1750328483954,8.10670874,146.09,146.08,82.32740603]
[1750328484819,8.10670874,146.09,146.06,6.8463528]
[1750328485018,8.10670874,146.07,146.06,6.8463528]
[1750328486327,8.10670874,146.08,146.06,6.8463528]
[1750328487742,26.0,146.09,146.06,14.95306154]
[1750328487914,8.10670874,146.11,146.06,32.06931513]
[1750328488120,8.10670874,146.11,146.08,6.84556407]
[1750328488929,34.10670874,146.12,146.08,14.95227281]
[1750328489246,1.5666,146.19,146.11,8.10670874]
[1750328489458,1.5666,146.19,146.09,18.64964886]
[1750328489459,8.10670874,146.18,146.09,26.7563576]
[1750328489644,8.10670874,146.19,146.15,8.10670874]
[1750328489822,7.92297986,146.24,146.11,18.64964886]
[1750328489823,26.0,146.17,146.16,8.10670874]
[1750328490021,8.10670874,146.2,146.16,8.10670874]
[1750328490329,26.0,146.18,146.17,6.84134911]
[1750328490747,8.10670874,146.21,146.17,6.84134911]
[1750328491128,26.0,146.18,146.17,6.84134911]
[1750328491435,8.10670874,146.21,146.17,6.84134911]
[1750328491638,34.10670874,146.21,146.17,6.84134911]
[1750328492326,34.10670874,146.21,146.17,8.10670874]
[1750328493632,12.86050085,146.24,146.18,14.94758984]
[1750328493952,34.10670874,146.22,146.18,14.94758984]
[1750328494556,8.10670874,146.21,146.18,6.8408811]
[1750328497870,34.10670874,146.22,146.18,32.0497926]
[1750328498034,26.0,146.22,146.19,8.10670874]
[1750328498359,26.0,146.22,146.2,18.64964886]
[1750328498565,5.07834277,146.27,146.2,18.64964886]
[1750328498566,8.10670874,146.24,146.2,26.7563576]
[1750328499449,8.10670874,146.23,146.21,6.83947746]
[1750328500860,26.0,146.26,146.22,26.7563576]
[1750328501074,8.10670874,146.28,146.23,8.10670874]
[1750328501309,8.10670874,146.26,146.22,18.64964886]
[1750328501447,26.0,146.27,146.23,6.83854202]
[1750328501639,8.10670874,146.26,146.23,6.83854202]
[1750328501839,34.10670874,146.27,146.23,14.94525076]
[1750328502048,34.10670874,146.27,146.23,32.04160581]
[1750328502251,13.02122219,146.31,146.24,18.64964886]
[1750328502540,34.10670874,146.28,146.24,18.64964886]
[1750328503160,8.10670874,146.27,146.24,18.64964886]
[1750328503572,34.10670874,146.27,146.25,6.83760683]
[1750328504558,8.10670874,146.26,146.25,6.83760683]
[1750328505483,8.10670874,146.26,146.23,23.93489707]
[1750328506176,26.0,146.27,146.23,32.04160581]
[1750328506376,26.0,146.27,146.24,8.10670874]
[1750328506578,1.5886,146.34,146.26,8.10670874]
[1750328506879,8.10670874,146.3,146.26,8.10670874]
[1750328508177,8.10670874,146.3,146.27,6.8366719]
[1750328508672,8.10670874,146.29,146.27,6.8366719]
[1750328509296,26.0,146.32,146.28,8.10670874]
[1750328509578,8.10670874,146.34,146.3,8.10670874]
[1750328509786,34.10670874,146.34,146.3,8.10670874]
[1750328510153,13.41704288,146.38,146.31,6.83480281]
[1750328510349,8.10670874,146.35,146.31,14.94151155]
[1750328510792,26.0,146.36,146.31,32.02851858]
[1750328510960,8.10670874,146.35,146.31,32.02851858]
[1750328512655,8.10670874,146.34,146.31,23.92180984]
[1750328513155,8.10670874,146.34,146.31,6.83480281]
[1750328513580,34.10670874,146.34,146.31,6.83480281]
[1750328514971,26.0,146.34,146.31,6.83480281]
[1750328515474,6.2562,146.39,146.33,8.10670874]
[1750328515773,8.10670874,146.38,146.33,8.10670874]
[1750328516658,8.10670874,146.38,146.34,6.83340166]
[1750328516853,8.10670874,146.37,146.34,6.83340166]
[1750328517083,34.10670874,146.37,146.34,6.83340166]
[1750328518474,26.0,146.37,146.34,6.83340166]
[1750328518678,34.10670874,146.37,146.34,6.83340166]
[1750328518887,34.10670874,146.37,146.33,6.83386865]
[1750328519064,34.10670874,146.37,146.33,14.94057739]
[1750328519260,7.8356,146.42,146.34,18.64964886]
[1750328519460,8.10670874,146.39,146.35,8.10670874]
[1750328519661,30.04969159,146.4,146.37,8.10670874]
[1750328519863,4.04969159,146.4,146.37,8.10670874]
[1750328520377,4.04969159,146.4,146.37,18.64964886]
[1750328520792,8.10670874,146.39,146.35,8.10670874]
[1750328520974,8.10670874,146.37,146.34,1.566]
[1750328521171,8.10670874,146.35,146.31,1.566]
[1750328521379,8.10670874,146.33,146.31,18.64964886]
[1750328521580,8.10670874,146.32,146.3,6.83526999]
[1750328521774,8.10670874,146.31,146.3,6.83526999]
[1750328522088,8.10670874,146.31,146.27,18.65694774]
[1750328522264,8.10670874,146.29,146.27,17.09094774]
[1750328522778,8.10670874,146.29,146.27,6.8366719]
[1750328522958,8.10670874,146.28,146.25,6.83760683]
[1750328523165,8.10670874,146.27,146.25,6.83760683]
[1750328523588,8.10670874,146.28,146.25,6.83760683]
[1750328524293,26.0,146.3,146.25,14.94431557]
[1750328524478,8.10670874,146.29,146.26,18.64964886]
[1750328524680,8.10670874,146.3,146.26,26.7563576]
[1750328524886,8.10670874,146.29,146.27,6.8366719]
[1750328525190,8.10670874,146.28,146.27,6.8366719]
[1750328526074,8.10670874,146.28,146.25,23.93162392]
[1750328526280,8.10670874,146.27,146.25,23.93162392]
[1750328528398,32.8344129,146.32,146.25,23.93162392]
[1750328528582,8.10670874,146.28,146.25,23.93162392]
[1750328528785,8.10670874,146.29,146.26,18.64964886]
[1750328530299,8.10670874,146.29,146.27,6.8366719]
[1750328532093,26.0,146.3,146.27,6.8366719]
[1750328532094,34.10670874,146.3,146.27,6.8366719]
[1750328533902,8.10670874,146.29,146.27,6.8366719]
[1750328535906,8.10670874,146.28,146.26,6.83713934]
[1750328539209,8.10670874,146.27,146.26,6.83713934]
[1750328539385,8.10670874,146.28,146.26,6.83713934]
[1750328541794,26.0,146.3,146.27,26.7563576]
[1750328542112,34.10670874,146.3,146.27,18.64964886]
[1750328543410,34.10670874,146.3,146.28,6.83620453]
[1750328547412,8.10670874,146.29,146.28,6.83620453]
[1750328548791,26.0,146.3,146.29,18.64964886]
[1750328549134,8.10670874,146.34,146.29,26.7563576]
[1750328549296,8.10670874,146.33,146.29,26.7563576]
[1750328549494,8.10670874,146.33,146.29,8.10670874]
[1750328549726,8.10670874,146.33,146.29,26.7563576]
[1750328549898,8.10670874,146.33,146.31,18.64964886]
[1750328550210,8.10670874,146.34,146.31,18.64964886]
[1750328550421,34.10670874,146.35,146.31,26.7563576]
[1750328550988,26.0,146.35,146.31,26.7563576]
[1750328551192,26.0,146.35,146.32,8.10670874]
[1750328551498,8.10670874,146.36,146.32,8.10670874]
[1750328551701,34.10670874,146.36,146.32,8.10670874]
[1750328551904,26.0,146.34,146.33,6.83386865]
[1750328552531,26.0,146.35,146.33,6.83386865]
[1750328552741,26.0,146.34,146.33,6.83386865]
[1750328553300,26.0,146.34,146.32,6.8343357]
[1750328554410,34.10670874,146.35,146.32,6.8343357]
[1750328557229,8.10670874,146.34,146.32,6.8343357]
[1750328558523,26.0,146.35,146.32,6.8343357]
[1750328558704,8.10670874,146.34,146.32,6.8343357]
[1750328561049,11.71369159,146.4,146.33,26.7563576]
[1750328561205,13.20499515,146.39,146.35,18.64964886]
[1750328561406,31.09801932,146.39,146.35,26.7563576]
[1750328562239,39.20472806,146.39,146.34,18.64964886]
[1750328562533,26.0,146.36,146.34,18.64964886]
[1750328563042,26.0,146.36,146.35,6.83293474]
[1750328563522,8.10670874,146.37,146.35,6.83293474]
[1750328565445,8.10670874,146.36,146.35,6.83293474]
[1750328569232,26.0,146.34,146.33,6.83386865]
[1750328569453,34.10670874,146.34,146.33,6.83386865]
[1750328570550,34.10670874,146.34,146.32,6.8343357]
[1750328573380,26.0,146.34,146.32,6.8343357]
[1750328573583,4.04969159,146.4,146.33,52.7563576]
[1750328573871,4.04969159,146.4,146.38,8.10670874]
[1750328574338,4.04969159,146.4,146.34,18.64964886]
[1750328574544,4.04969159,146.4,146.38,18.64964886]
[1750328575246,12.15640033,146.4,146.34,18.64964886]
[1750328575445,12.15640033,146.4,146.37,6.83200109]
[1750328576961,4.04969159,146.4,146.39,26.7563576]
[1750328577677,4.04969159,146.4,146.39,33.58742529]
[1750328580888,4.04969159,146.4,146.39,25.48071655]
[1750328581101,4.04969159,146.4,146.39,33.58742529]
[1750328582101,12.15640033,146.4,146.37,18.64964886]
[1750328582282,8.10670874,146.38,146.36,6.83246788]
[1750328582580,8.10670874,146.37,146.36,6.83246788]
[1750328582771,4.04969159,146.4,146.36,6.83246788]
[1750328582971,8.10670874,146.37,146.36,6.83246788]
[1750328583575,8.10670874,146.37,146.33,18.64964886]
[1750328583782,8.10670874,146.35,146.33,18.64964886]
[1750328584581,8.10670874,146.35,146.34,6.83340166]
[1750328584781,8.10670874,146.37,146.34,23.91690582]
[1750328585085,13.8736298,146.37,146.35,18.64964886]
[1750328585586,13.8736298,146.36,146.35,18.64964886]
[1750328586484,13.8736298,146.38,146.35,18.64964886]
[1750328586672,13.8736298,146.38,146.36,6.83246788]
[1750328586980,13.8736298,146.37,146.36,25.48211674]
[1750328587357,30.04969159,146.4,146.37,18.64964886]
[1750328587559,13.8736298,146.38,146.37,18.64964886]
[1750328588073,13.8736298,146.38,146.36,6.83246788]
[1750328588260,4.04969159,146.4,146.36,23.91363759]
[1750328588587,17.92332139,146.4,146.36,37.78726739]
[1750328588802,43.92332139,146.4,146.36,37.78726739]
[1750328590966,13.8736298,146.39,146.36,23.91363759]
[1750328591189,13.8736298,146.38,146.36,23.91363759]
[1750328591692,13.8736298,146.39,146.36,23.91363759]
[1750328592005,13.8736298,146.39,146.37,18.64964886]
[1750328592291,43.92332139,146.4,146.37,18.64964886]
[1750328592496,13.8736298,146.39,146.37,18.64964886]
[1750328594294,13.8736298,146.39,146.38,6.83153436]
[1750328596097,43.92332139,146.4,146.38,18.64964886]
[1750328596993,13.8736298,146.39,146.38,18.64964886]
[1750328598403,13.8736298,146.39,146.38,25.48118322]
[1750328601795,13.8736298,146.39,146.37,17.08000273]
[1750328601982,13.8736298,146.39,146.37,35.72965159]
[1750328602183,13.8736298,146.39,146.37,17.08000273]
[1750328602407,13.8736298,146.38,146.37,17.08000273]
[1750328604524,13.8736298,146.38,146.36,6.83246788]
[1750328604821,13.8736298,146.37,146.36,6.83246788]
[1750328606722,13.8736298,146.37,146.35,17.08221324]
[1750328606933,8.09488076,146.36,146.35,17.08221324]
[1750328607419,8.09488076,146.36,146.34,6.83340166]
[1750328608139,26.0,146.34,146.28,1.5444]
[1750328608291,8.09488076,146.3,146.29,6.83573723]
[1750328608493,8.09488076,146.31,146.27,23.92835167]
[1750328608793,34.09488076,146.33,146.28,8.09488076]
[1750328608991,33.6918,146.37,146.32,18.64964886]
[1750328609191,34.09488076,146.37,146.32,26.74452962]
[1750328610795,34.09488076,146.37,146.34,18.64964886]
[1750328611825,8.09488076,146.35,146.33,23.91854028]
[1750328612626,8.09488076,146.34,146.33,42.56818914]
[1750328613117,8.09488076,146.35,146.33,42.56818914]
[1750328613626,8.09488076,146.34,146.33,42.56818914]
[1750328616027,8.09488076,146.34,146.33,6.83386865]
[1750328617625,8.09488076,146.34,146.32,6.8343357]
[1750328617819,8.09488076,146.33,146.32,25.48398456]
[1750328620329,8.09488076,146.35,146.33,18.64964886]
[1750328620820,8.09488076,146.36,146.33,18.64964886]
[1750328621407,26.0,146.37,146.33,18.64964886]
[1750328621624,34.09488076,146.37,146.35,18.64964886]
[1750328623126,34.09488076,146.37,146.36,6.83246788]
[1750328624918,9.15117996,146.4,146.37,18.64964886]
[1750328625127,4.04969159,146.4,146.39,18.64964886]
[1750328625323,4.04969159,146.4,146.39,26.74452962]
[1750328626214,4.04969159,146.4,146.39,35.18439731]
[1750328626826,4.04969159,146.4,146.39,123.38439731]
[1750328629939,4.04969159,146.4,146.39,115.28951655]
[1750328630145,4.04969159,146.4,146.39,123.38439731]
[1750328635541,4.04969159,146.4,146.39,121.77559731]
[1750328647448,4.04969159,146.4,146.39,123.31839731]
[1750328650353,4.04969159,146.4,146.39,115.22351655]
[1750328650654,4.04969159,146.4,146.39,123.31839731]
[1750328654361,4.04969159,146.4,146.39,121.77559731]
[1750328654963,4.04969159,146.4,146.39,113.68071655]
[1750328655141,4.04969159,146.4,146.39,25.48071655]
[1750328655928,12.14457235,146.4,146.39,25.48071655]
[1750328656134,12.14457235,146.4,146.39,6.83106769]
[1750328656855,12.14457235,146.4,146.38,6.83153436]
[1750328657162,8.09488076,146.39,146.36,6.83246788]
[1750328657473,4.04969159,146.4,146.36,6.83246788]
[1750328657474,8.09488076,146.37,146.36,6.83246788]
[1750328659139,8.09488076,146.37,146.34,25.48305052]
[1750328659341,8.09488076,146.35,146.34,25.48305052]
[1750328660935,8.09488076,146.35,146.33,17.083687]
[1750328661134,8.09488076,146.34,146.33,17.083687]
[1750328661874,34.09488076,146.34,146.31,6.83480281]
[1750328662076,8.09488076,146.32,146.31,6.83480281]
[1750328665861,8.09488076,146.32,146.3,6.83509796]
[1750328666071,34.09488076,146.31,146.29,6.83562582]
[1750328666376,8.09488076,146.3,146.29,6.83562582]
[1750328667151,8.09488076,146.3,146.27,23.92779122]
[1750328667351,26.0,146.31,146.28,18.64964886]
[1750328667558,8.09488076,146.34,146.3,8.09488076]
[1750328667853,8.09488076,146.34,146.29,8.09488076]
[1750328668035,8.09488076,146.33,146.29,8.09488076]
[1750328668676,8.09488076,146.33,146.31,18.64964886]
[1750328669778,8.09488076,146.33,146.32,6.8343357]
[1750328673392,33.6408,146.36,146.32,6.8343357]
[1750328673587,8.09488076,146.33,146.32,6.8343357]
[1750328674797,33.6408,146.36,146.32,6.8343357]
[1750328674995,8.09488076,146.34,146.32,23.92017495]
[1750328677460,8.09488076,146.33,146.32,6.8343357]
[1750328678537,8.09488076,146.33,146.31,6.83480281]
[1750328679390,8.09488076,146.32,146.31,6.83480281]
[1750328679613,8.09488076,146.32,146.31,42.5714587]
[1750328680129,33.6408,146.36,146.32,18.64964886]
[1750328680334,8.09488076,146.35,146.32,18.64964886]
[1750328681130,26.0,146.36,146.33,6.83386865]
[1750328681333,12.20159159,146.4,146.35,8.09488076]
[1750328681492,4.04969159,146.4,146.37,8.09488076]
[1750328681689,12.14457235,146.4,146.36,8.09488076]
[1750328681892,12.14457235,146.4,146.37,18.64964886]
[1750328682425,4.04969159,146.4,146.37,26.74452962]
[1750328683207,4.04969159,146.4,146.38,6.83153436]
[1750328683723,12.14457235,146.4,146.38,6.83153436]
[1750328684287,8.09488076,146.39,146.38,6.83153436]
[1750328685103,8.09488076,146.39,146.36,6.83246788]
[1750328685303,8.09488076,146.37,146.36,25.48211674]
[1750328686018,4.04969159,146.4,146.36,25.48211674]
[1750328686309,8.09488076,146.38,146.36,25.48211674]
[1750328686510,8.09488076,146.37,146.36,25.48211674]
[1750328688245,4.04969159,146.4,146.37,18.64964886]
[1750328688544,8.09488076,146.39,146.37,18.64964886]
[1750328690341,8.09488076,146.39,146.38,6.83153436]
[1750328691935,8.09488076,146.39,146.37,25.48164995]
[1750328693713,8.09488076,146.38,146.37,6.83200109]
[1750328696121,8.09488076,146.38,146.32,18.64964886]
[1750328696324,26.0,146.38,146.32,18.64964886]
[1750328696516,8.09488076,146.34,146.32,18.64964886]
[1750328696842,8.09488076,146.33,146.32,18.64964886]
[1750328697035,8.09488076,146.33,146.31,6.83480281]
[1750328697243,8.09488076,146.32,146.31,25.48445167]
[1750328700354,8.09488076,146.32,146.31,6.83480281]
[1750328700553,34.09488076,146.32,146.29,6.83573723]
[1750328700721,16.18976152,146.3,146.27,6.8366719]
[1750328700927,8.09488076,146.28,146.27,6.8366719]
[1750328702046,8.09488076,146.28,146.26,6.83713934]
[1750328702250,8.09488076,146.27,146.26,6.83713934]
[1750328704033,8.09488076,146.27,146.25,6.83760683]
[1750328704254,8.09488076,146.26,146.25,6.83760683]
[1750328706654,34.09488076,146.27,146.25,25.48725569]
[1750328707040,8.09488076,146.27,146.25,25.48725569]
[1750328707352,8.09488076,146.26,146.25,25.48725569]
[1750328708441,8.09488076,146.26,146.25,6.83760683]
[1750328710630,8.09488076,146.26,146.25,25.48725569]
[1750328710832,8.09488076,146.27,146.26,18.64964886]
[1750328711033,8.09488076,146.28,146.26,18.64964886]
[1750328711763,5.08265333,146.35,146.28,18.64964886]
[1750328711935,1.5535,146.37,146.28,18.64964886]
[1750328711936,8.09488076,146.32,146.28,26.74452962]
[1750328712463,15.84838076,146.37,146.28,26.74452962]
[1750328712638,8.09488076,146.33,146.3,12.21079302]
[1750328713841,8.09488076,146.31,146.29,23.92508031]
[1750328714136,8.09488076,146.3,146.29,23.92508031]
[1750328714332,8.09488076,146.31,146.29,23.92508031]
[1750328714538,8.09488076,146.32,146.31,6.83480281]
[1750328716178,26.0,146.34,146.31,6.83480281]
[1750328716348,8.09488076,146.32,146.31,6.83480281]
[1750328719043,26.0,146.34,146.31,23.92180984]
[1750328719250,8.09488076,146.33,146.31,23.92180984]
[1750328719849,26.0,146.36,146.32,18.64964886]
[1750328720144,8.09488076,146.34,146.32,18.64964886]
[1750328720752,26.0,146.36,146.32,18.64964886]
[1750328720953,8.09488076,146.34,146.32,18.64964886]
[1750328721153,8.09488076,146.34,146.33,6.83386865]
[1750328725472,26.0,146.36,146.33,6.83386865]
[1750328725775,8.09488076,146.34,146.33,6.83386865]
[1750328729774,26.0,146.37,146.33,23.91854028]
[1750328729964,8.09488076,146.36,146.33,23.91854028]
[1750328731960,8.09488076,146.35,146.33,23.91854028]
[1750328733174,8.09488076,146.34,146.31,23.92180984]
[1750328734225,8.09488076,146.35,146.32,18.64964886]
[1750328734973,8.09488076,146.34,146.32,18.64964886]
[1750328735179,8.09488076,146.34,146.33,6.83386865]
[1750328739062,13.18564154,146.37,146.33,23.91854028]
[1750328739063,31.09076078,146.37,146.33,23.91854028]
[1750328739374,34.09488076,146.37,146.34,18.64964886]
[1750328739578,26.0,146.37,146.34,18.64964886]
[1750328739774,8.09488076,146.38,146.34,18.64964886]
[1750328740371,8.09488076,146.37,146.35,6.83293474]
[1750328743372,8.09488076,146.37,146.35,23.9152716]
[1750328748104,8.09488076,146.36,146.35,6.83293474]
[1750328750991,8.09488076,146.36,146.33,6.83386865]
[1750328751195,34.09488076,146.34,146.3,17.08709512]
[1750328751501,31.10032357,146.34,146.3,17.08709512]
[1750328751707,26.0,146.34,146.3,17.08709512]
[1750328752177,31.10325702,146.34,146.3,17.08709512]
[1750328752377,26.0,146.34,146.3,17.08709512]
[1750328752573,8.09488076,146.31,146.3,42.57201397]
[1750328754805,8.09488076,146.31,146.3,23.92236511]
[1750328755193,8.09488076,146.31,146.3,6.83526999]
[1750328755998,8.09488076,146.31,146.28,23.92668565]
[1750328756193,8.09488076,146.31,146.29,18.64964886]
[1750328756886,8.09488076,146.3,146.29,18.64964886]
[1750328757287,8.09488076,146.3,146.29,25.48538609]
[1750328759889,8.09488076,146.3,146.27,6.8366719]
[1750328760112,8.09488076,146.28,146.27,6.8366719]
[1750328761012,8.09488076,146.31,146.28,18.64964886]
[1750328761915,8.09488076,146.31,146.29,6.83573723]
[1750328763423,8.09488076,146.3,146.29,6.83573723]
[1750328763721,26.0,146.33,146.29,6.83573723]
[1750328764015,8.09488076,146.3,146.29,6.83573723]
[1750328764916,16.18976152,146.3,146.25,17.09399941]
[1750328765227,8.09488076,146.26,146.25,42.5812551]
[1750328766627,1.0,162.0,146.25,42.5812551]
[1750328766628,5.10671875,146.33,146.28,18.64964886]
[1750328766827,8.09488076,146.37,146.33,18.64964886]
[1750328766986,13.20003585,146.38,146.34,8.09488076]
[1750328767192,8.09488076,146.38,146.35,18.64964886]
[1750328768451,4.04969159,146.4,146.37,18.64964886]
[1750328768597,4.04969159,146.4,146.37,26.74452962]
[1750328769006,4.04969159,146.4,146.38,8.09488076]
[1750328769706,4.04969159,146.4,146.39,6.83106769]
[1750328770418,4.04969159,146.4,146.39,25.48071655]
[1750328771413,4.04969159,146.4,146.39,39.34516265]
[1750328773303,4.04969159,146.4,146.39,25.48071655]
[1750328773819,4.04969159,146.4,146.39,39.34516265]
[1750328774405,4.04969159,146.4,146.39,25.48071655]
[1750328774617,4.04969159,146.4,146.39,39.34516265]
[1750328776110,4.04969159,146.4,146.39,25.48071655]